[Event "Queen Rapid Challenge 2024"]
[Site "Bucharest"]
[Date "2024.03.10"]
[Round "6.1"]
[White "Iordache, Alexia-Andreea"]
[Black "Bulmaga, Irina"]
[Result "0-1"]
[ECO "C47"]
[WhiteElo "1866"]
[BlackElo "2429"]
[Annotator "TA"]
[PlyCount "176"]
[EventDate "2024.03.09"]
[EventType "rapid"]
[EventCountry "ROU"]
[SourceTitle "playchess.com"]
[Source "ChessBase"]
[SourceQuality "1"]
[TimeControl "900+10"]

{[%evp 61,176,7,7,4,77,52,80,0,0,0,0,0,0,0,0,0,0,0,0,0,0,0,0,0,0,0,0,0,0,0,0,0,0,0,0,0,0,0,0,0,0,0,0,0,-11,-2404,-1083,-1083,-920,-584,-584,-583,0,0,0,0,0,0,0,0,0,0,0,0,0,0,0,0,0,0,0,0,0,0,0,0,0,0,0,0,0,0,0,0,0,0,0,0,0,0,0,0,0,0,0,0,0,0,0,-29976,-29977,-29981,-29982,-29986,-29987,-29987,-29988,-29988,-29989,-29989,-29990,-29990,-29991,-29991,-29992,-29992,-29993]} 1. e4 {[%emt 0:00:12]} e5 {[%emt 0:00:12]} 2. Nf3 {[%emt 0:00:07]} Nc6 {[%emt 0:00:07]} 3. Nc3 {[%emt 0:00:06]} Nf6 {[%emt 0:00:07]} 4. d4 {[%emt 0:00:06]} exd4 {[%emt 0:00:11]} 5. Nxd4 {[%emt 0:00:07]} Bb4 {[%emt 0:00:11]} 6. Nxc6 {[%emt 0:00:06]} bxc6 {[%emt 0:00:06]} 7. Bd3 {[%emt 0:00:13]} O-O {[%emt 0:00:15]} 8. O-O {[%emt 0:00:07]} d5 {[%emt 0:00:10]} 9. exd5 {[%emt 0:00:07]} cxd5 {[%emt 0:00:07]} 10. Bg5 {[%emt 0:00:07]} c6 {[%emt 0:00:26]} 11. Qf3 {[%emt 0:00:06]} h6 {[%emt 0:00:21]} 12. Bxf6 {[%emt 0:00:08]} Qxf6 {[%emt 0:00:08]} 13. Qxf6 {[%emt 0:00:07]} gxf6 {[%emt 0:00:07]} 14. Ne2 {[%emt 0:00:35]} Bd6 {[%emt 0:00:33]} 15. c3 {[%emt 0:00:55] C47: Schottisches Vierspringerspiel.} Rb8 {[%emt 0:00:20]} 16. b4 {[%emt 0:00:10]} Be6 {[%emt 0:01:35]} 17. Nd4 {[%emt 0:00:58]} c5 {[%emt 0:01:09]} 18. bxc5 {[%emt 0:00:11]} Bxc5 {[%emt 0:00:09]} 19. Rab1 $146 {[%emt 0:00:09]} ({Predecessor:} 19. Rfb1 a5 20. Kf1 a4 21. Rxb8 Rxb8 22. Rb1 Rc8 23. Ke2 Bd6 24. Rb6 Be5 25. Nxe6 fxe6 26. Rxe6 Rxc3 {1-0 Paravyan,D (2620)-Matinian,N (2435) Chess.com Rapid Wk20 Swiss 2022 (2)}) 19... Rb6 {[%emt 0:00:30]} 20. Rb5 {[%emt 0:03:13]} Bxd4 {[%emt 0:00:30]} 21. cxd4 {[%emt 0:00:10]} Rxb5 {[%emt 0:00:07]} 22. Bxb5 {[%emt 0:00:06]} Rc8 {[%emt 0:00:07]} 23. Bd3 {[%emt 0:05:36]} Rc3 {[%emt 0:00:21]} 24. Rd1 {[%emt 0:00:13]} Kf8 {[%emt 0:00:27]} 25. f3 {[%emt 0:00:25]} Ke7 {[%emt 0:01:01]} 26. Kf2 {[%emt 0:00:06]} Kd6 {[%emt 0:00:08]} 27. Rd2 {[%emt 0:00:41]} Bd7 {[%emt 0:00:25]} 28. Ke2 {[%emt 0:00:28]} Ra3 {[%emt 0:01:22]} 29. Rb2 {[%emt 0:01:07]} Bc8 {[%emt 0:00:36]} 30. Kd2 {[%emt 0:00:39]} Ba6 {[%emt 0:01:10]} 31. Bxa6 {[%emt 0:00:21]} Rxa6 {[%emt 0:00:07]} 32. Ke3 {[%emt 0:00:29]} Ke6 {[%emt 0:00:21] [#]} (32... Ra3+ $11 {bleibt in der Remisbreite.} 33. Kf4 Rd3) 33. Kf4 $1 $16 {[%emt 0:00:47]} Ra4 {[%emt 0:00:07]} 34. Rd2 {[%emt 0:00:05]} (34. Re2+ $16 Kd6 35. Rd2 (35. Kf5 Rxd4 36. Kxf6 Rf4+ 37. Kg7 h5 $15)) 34... f5 $1 $11 {[%emt 0:00:50]} 35. Re2+ {[%emt 0:01:10]} Kf6 {[%emt 0:00:10]} 36. Rd2 {[%emt 0:00:06]} a5 {[%emt 0:00:29]} 37. g4 {[%emt 0:00:25]} Rc4 {[%emt 0:00:23]} 38. h4 {[%emt 0:00:22]} fxg4 {[%emt 0:00:18]} 39. fxg4 {[%emt 0:00:07]} Rc1 {[%emt 0:00:16]} 40. g5+ {[%emt 0:00:17]} hxg5+ {[%emt 0:00:07]} 41. hxg5+ {[%emt 0:00:06]} Ke6 {[%emt 0:00:07]} 42. Re2+ {[%emt 0:00:17]} Kd6 {[%emt 0:00:07]} 43. Rd2 {[%emt 0:00:07]} a4 {[%emt 0:00:22]} 44. Kf5 {[%emt 0:00:16]} Rf1+ {[%emt 0:00:07]} 45. Kg4 {[%emt 0:00:05]} Re1 {[%emt 0:00:29]} 46. Kf5 {[%emt 0:00:09]} Re4 {[%emt 0:00:18]} 47. g6 {[%emt 0:00:21]} fxg6+ {[%emt 0:00:07]} 48. Kxg6 {[%emt 0:00:06]} Kc6 {[%emt 0:00:15]} 49. Kf5 {[%emt 0:00:14]} Kb5 {[%emt 0:00:12]} 50. Rc2 {[%emt 0:00:12]} Kb4 {[%emt 0:00:19]} (50... Rxd4 51. Ke5 Rd3 52. Rc8 $17) 51. Kf6 $1 {[%emt 0:00:10]} Rxd4 {[%emt 0:00:37]} 52. Ke5 {[%emt 0:00:06]} Rd1 {[%emt 0:00:10]} 53. Kf4 $2 {[%emt 0:00:14][%mdl 8192]} (53. Ke6 $11) 53... d4 {[%emt 0:00:15]} (53... Re1 $142 54. Kf3 d4) 54. Ke4 $19 {[%emt 0:00:10]} d3 {[%emt 0:00:10]} 55. Rc8 {[%emt 0:00:06]} Ka3 {[%emt 0:00:23]} 56. Ra8 {[%emt 0:00:11] [#]} Kb4 $2 {[%emt 0:01:02]} (56... Kxa2 57. Rxa4+ Kb3 58. Ra5 $11) (56... Kb2 $1 $19 {Zielt auf ...a3 ab.} 57. Rxa4 Kc2 58. Rc4+ Kd2) 57. Rc8 {[%emt 0:00:06]} Rd2 {[%emt 0:01:02]} 58. Ke3 {[%emt 0:00:12]} Rxa2 {[%emt 0:00:35]} 59. Kxd3 {[%emt 0:00:07]} Rb2 {[%emt 0:00:19]} 60. Ra8 {[%emt 0:00:14]} Ka3 {[%emt 0:00:13]} 61. Kc3 {[%emt 0:00:12]} Rb4 {[%emt 0:00:14]} 62. Ra7 {[%emt 0:00:12]} Rh4 {[%emt 0:00:21]} 63. Ra8 {[%emt 0:00:08]} Ka2 {[%emt 0:00:10]} 64. Kc2 {[%emt 0:00:06]} a3 {[%emt 0:00:12]} 65. Ra7 {[%emt 0:00:08]} Rc4+ {[%emt 0:00:08]} 66. Kd3 {[%emt 0:00:08]} Rc5 {[%emt 0:00:12]} 67. Rb7 {[%emt 0:00:07]} Rc1 {[%emt 0:00:10]} 68. Kd2 {[%emt 0:00:17]} Rb1 {[%emt 0:00:09]} 69. Ra7 $1 {[%emt 0:00:08]} Rb6 {[%emt 0:00:08]} (69... Kb2 $5 70. Rb7+ $8 Ka2 $11) 70. Kc2 {[%emt 0:00:12]} Rc6+ {[%emt 0:00:09]} 71. Kd2 {[%emt 0:00:09]} Rc4 {[%emt 0:00:09]} (71... Kb3 $5 72. Rb7+ $8 Ka2 $11) 72. Kd3 {[%emt 0:00:08]} Rb4 {[%emt 0:00:18]} 73. Kc2 {[%emt 0:00:07]} Rh4 {[%emt 0:00:14]} 74. Ra8 {[%emt 0:00:10]} Rh2+ {[%emt 0:00:07]} 75. Kc3 {[%emt 0:00:16]} Rh4 {[%emt 0:00:08]} 76. Kc2 {[%emt 0:00:07]} Rh2+ {[%emt 0:00:13]} 77. Kc3 {[%emt 0:00:07]} Rb2 {[%emt 0:00:08]} 78. Ra7 {[%emt 0:00:07]} Rb5 {[%emt 0:00:12]} 79. Kc4 {[%emt 0:00:19]} Rb3 {[%emt 0:00:09]} 80. Ra8 $2 {[%emt 0:00:11][%mdl 8192]} (80. Rf7 $11) 80... Kb2 {[%emt 0:00:09]} 81. Ra7 {[%emt 0:00:09]} a2 {[%emt 0:00:08]} 82. Ra6 {[%emt 0:00:12]} Ra3 {[%emt 0:00:16]} ({Schwächer ist} 82... a1=B 83. Rxa1 Rc3+ 84. Kb4 $11) 83. Rb6+ {[%emt 0:00:14]} Kc2 {[%emt 0:00:08]} 84. Rh6 {[%emt 0:00:07]} Rc3+ {[%emt 0:00:08]} (84... a1=B 85. Rh2+ Kb1 86. Rh1+ Ka2 87. Rg1 $17) 85. Kb4 {[%emt 0:00:08]} a1=Q {[%emt 0:00:09]} ({Und nicht} 85... a1=B 86. Rh2+ Kb1 87. Rh1+ (87. Ka4 Bb2 $11) 87... Kc2 88. Rxa1 $11) 86. Rh2+ {[%emt 0:00:06]} Kd3 {[%emt 0:00:12]} 87. Rh3+ {[%emt 0:00:06]} Kd4 {[%emt 0:00:07]} 88. Rh4+ {[%emt 0:00:10]} Ke5 {[%emt 0:00:08]} 0-1

[Event "Queen Rapid Challenge 2024"]
[Site "Bucharest"]
[Date "2024.03.10"]
[Round "6.2"]
[White "Obada, Ema"]
[Black "Hoanca, Alexia-Ioana"]
[Result "1-0"]
[ECO "B13"]
[WhiteElo "1976"]
[BlackElo "1849"]
[Annotator "RC"]
[PlyCount "108"]
[EventDate "2024.03.09"]
[EventType "rapid"]
[EventCountry "ROU"]
[SourceTitle "playchess.com"]
[Source "ChessBase"]
[SourceQuality "1"]
[TimeControl "900+10"]

1. e4 {[%emt 0:00:12]} c6 {[%emt 0:00:10]} 2. d4 {[%emt 0:00:07]} d5 {[%emt 0:00:07]} 3. exd5 {[%emt 0:00:08]} cxd5 {[%emt 0:00:06]} 4. Bd3 {[%emt 0:00:08]} Nc6 {[%emt 0:00:06]} 5. c3 {[%emt 0:00:07]} Qc7 {[%emt 0:00:07]} 6. Na3 {[%emt 0:00:07]} a6 {[%emt 0:00:31]} 7. Nc2 {[%emt 0:00:07]} Nf6 {[%emt 0:00:14]} 8. h3 {[%emt 0:00:06]} g6 {[%emt 0:00:07]} 9. Ne2 {[%emt 0:00:22]} Bf5 {[%emt 0:00:11]} 10. Bf4 {[%emt 0:00:34]} Qd7 {[%emt 0:00:29]} 11. O-O {[%emt 0:00:48]} Bg7 {[%emt 0:00:26]} 12. Re1 {[%emt 0:00:46]} O-O {[%emt 0:01:21]} 13. Bxf5 {[%emt 0:00:50]} gxf5 {[%emt 0:00:09]} 14. Ng3 {[%emt 0:00:27]} Kh8 {[%emt 0:01:55]} 15. Re3 {[%emt 0:01:38]} e6 {[%emt 0:01:15]} 16. Ne1 {[%emt 0:00:13]} Ne7 {[%emt 0:00:23]} 17. Nd3 {[%emt 0:00:41]} Ng6 {[%emt 0:00:41]} 18. Ne2 {[%emt 0:03:19]} Nh5 {[%emt 0:01:17]} 19. Bh2 {[%emt 0:01:54]} Bh6 {[%emt 0:00:20]} 20. Nc5 {[%emt 0:01:04]} Qc6 {[%emt 0:02:04]} 21. Rd3 {[%emt 0:00:17]} b6 {[%emt 0:00:42]} 22. Qa4 {[%emt 0:01:18]} b5 {[%emt 0:00:52]} 23. Qc2 {[%emt 0:00:22]} Rg8 {[%emt 0:00:11]} 24. Kh1 {[%emt 0:00:49]} Nf6 {[%emt 0:01:08]} 25. f3 {[%emt 0:00:43]} Nh5 {[%emt 0:00:31]} 26. Rdd1 {[%emt 0:00:28]} Ngf4 {[%emt 0:00:40]} 27. Nxf4 {[%emt 0:00:26]} Bxf4 {[%emt 0:01:00]} 28. Nd3 {[%emt 0:00:40]} Bxh2 {[%emt 0:00:28]} 29. Kxh2 {[%emt 0:00:07]} Qc7+ {[%emt 0:00:17]} 30. Kh1 {[%emt 0:00:17]} Rg3 {[%emt 0:00:43]} 31. Rd2 {[%emt 0:00:59]} Rag8 {[%emt 0:00:29]} 32. Rg1 {[%emt 0:00:11]} Qe7 {[%emt 0:00:47]} 33. Ne5 {[%emt 0:00:16]} f6 {[%emt 0:00:19]} 34. Nd3 {[%emt 0:00:06]} Qg7 {[%emt 0:00:20]} 35. Rf2 {[%emt 0:00:08]} Qh6 {[%emt 0:00:08]} 36. Re1 {[%emt 0:00:08]} Ng7 {[%emt 0:00:18]} 37. Qd2 {[%emt 0:00:12]} Qh4 {[%emt 0:00:08]} 38. Qf4 {[%emt 0:00:09]} Qxf4 {[%emt 0:00:08]} 39. Nxf4 {[%emt 0:00:05]} Re8 {[%emt 0:00:07]} 40. Kh2 {[%emt 0:00:12]} Rg5 {[%emt 0:00:11]} 41. h4 {[%emt 0:00:06]} Nh5 {[%emt 0:00:07]} 42. Nxe6 {[%emt 0:00:24]} Rgg8 {[%emt 0:00:13]} 43. Rfe2 {[%emt 0:00:06]} Rc8 {[%emt 0:00:13]} 44. Nc5 {[%emt 0:00:08]} Rc7 {[%emt 0:00:09]} 45. Re7 {[%emt 0:00:08]} Rxe7 {[%emt 0:00:08]} 46. Rxe7 {[%emt 0:00:06]} Nf4 {[%emt 0:00:06]} 47. g3 {[%emt 0:00:08]} Nh5 {[%emt 0:00:06]} 48. Nxa6 {[%emt 0:00:24]} Nxg3 {[%emt 0:00:16]} 49. Re1 {[%emt 0:00:07]} f4 {[%emt 0:00:13]} 50. Nc7 {[%emt 0:00:10]} Nf5 {[%emt 0:00:09]} 51. Nxd5 {[%emt 0:00:10]} Nxh4 {[%emt 0:00:09]} 52. Rf1 {[%emt 0:00:10]} Rg3 {[%emt 0:00:20]} 53. Nxf4 {[%emt 0:00:08]} Rxf3 {[%emt 0:00:08]} 54. Rxf3 {[%emt 0:00:06]} Nxf3+ {[%emt 0:00:00]} 1-0

[Event "Queen Rapid Challenge 2024"]
[Site "Bucharest"]
[Date "2024.03.10"]
[Round "6.3"]
[White "Batagan, Ilinca-Petra"]
[Black "Ciolacu, Alessia-Mihaela"]
[Result "0-1"]
[ECO "C71"]
[WhiteElo "1915"]
[BlackElo "2175"]
[Annotator "RC"]
[PlyCount "62"]
[EventDate "2024.03.09"]
[EventType "rapid"]
[EventCountry "ROU"]
[SourceTitle "playchess.com"]
[Source "ChessBase"]
[SourceQuality "1"]
[TimeControl "900+10"]

1. e4 {[%emt 0:00:12]} e5 {[%emt 0:00:14]} 2. Nf3 {[%emt 0:00:08]} Nc6 {[%emt 0:00:10]} 3. Bb5 {[%emt 0:00:11]} a6 {[%emt 0:00:12]} 4. Ba4 {[%emt 0:00:08]} d6 {[%emt 0:00:10]} 5. d4 {[%emt 0:00:44]} b5 {[%emt 0:00:29]} 6. Bb3 {[%emt 0:00:58]} Nxd4 {[%emt 0:00:16]} 7. Nxd4 {[%emt 0:00:08]} exd4 {[%emt 0:00:07]} 8. Qxd4 {[%emt 0:00:08]} c5 {[%emt 0:00:15]} 9. Qd5 {[%emt 0:00:32]} Be6 {[%emt 0:00:14]} 10. Qc6+ {[%emt 0:03:41]} Bd7 {[%emt 0:00:09]} 11. Qd5 {[%emt 0:00:08]} c4 {[%emt 0:00:08]} 12. Bxc4 {[%emt 0:03:18]} bxc4 {[%emt 0:00:10]} 13. Qxc4 {[%emt 0:00:07]} Nf6 {[%emt 0:00:36]} 14. O-O {[%emt 0:00:13]} Bb5 {[%emt 0:00:10]} 15. Qd4 {[%emt 0:00:48]} Bxf1 {[%emt 0:00:13]} 16. Kxf1 {[%emt 0:00:07]} Be7 {[%emt 0:00:21]} 17. Nc3 {[%emt 0:00:08]} O-O {[%emt 0:00:15]} 18. Be3 {[%emt 0:00:34]} Rb8 {[%emt 0:00:21]} 19. b3 {[%emt 0:00:16]} Ng4 {[%emt 0:00:34]} 20. Nd5 {[%emt 0:00:52]} Bf6 {[%emt 0:00:50]} 21. Nxf6+ {[%emt 0:00:13]} Qxf6 {[%emt 0:00:08]} 22. Qxf6 {[%emt 0:00:46]} Nxe3+ {[%emt 0:00:49]} 23. fxe3 {[%emt 0:00:09]} gxf6 {[%emt 0:00:06]} 24. c4 {[%emt 0:00:13]} Rfe8 {[%emt 0:00:22]} 25. Rd1 {[%emt 0:00:11]} Re6 {[%emt 0:01:47]} 26. Kf2 {[%emt 0:00:19]} Kf8 {[%emt 0:00:17]} 27. Rd5 {[%emt 0:00:13]} Ke7 {[%emt 0:00:14]} 28. Ra5 {[%emt 0:00:13]} Rb6 {[%emt 0:00:20]} 29. Kf3 {[%emt 0:00:13]} Re5 {[%emt 0:00:09]} 30. Rd5 {[%emt 0:00:55]} Rxd5 {[%emt 0:00:36]} 31. exd5 {[%emt 0:00:07]} a5 {[%emt 0:00:08]} 0-1

[Event "Queen Rapid Challenge 2024"]
[Site "Bucharest"]
[Date "2024.03.10"]
[Round "6.4"]
[White "Pirvulescu, Ekaterina"]
[Black "Maria, Lia-Alexandra"]
[Result "1-0"]
[ECO "B72"]
[WhiteElo "2091"]
[BlackElo "1996"]
[Annotator "ChessBase"]
[PlyCount "85"]
[EventDate "2024.03.09"]
[EventType "rapid"]
[EventCountry "ROU"]
[SourceTitle "playchess.com"]
[Source "ChessBase"]
[SourceQuality "1"]
[TimeControl "900+10"]

1. e4 {[%emt 0:00:15]} c5 {[%emt 0:00:16]} 2. Nf3 {[%emt 0:00:03]} d6 {[%emt 0:00:31]} 3. d4 {[%emt 0:00:07]} Nf6 {[%emt 0:00:07]} 4. Nc3 {[%emt 0:00:24]} cxd4 {[%emt 0:00:07]} 5. Nxd4 {[%emt 0:00:07]} g6 {[%emt 0:00:56]} 6. Be3 {[%emt 0:00:16]} h5 {[%emt 0:00:12]} 7. Be2 {[%emt 0:00:29]} Bg7 {[%emt 0:00:07]} 8. O-O {[%emt 0:01:21]} O-O {[%emt 0:00:23]} 9. f4 {[%emt 0:00:31]} Ng4 {[%emt 0:00:50]} 10. Bxg4 {[%emt 0:00:31]} Bxg4 {[%emt 0:00:08]} 11. Qd2 {[%emt 0:00:16]} Nc6 {[%emt 0:06:00]} 12. f5 {[%emt 0:04:14]} gxf5 {[%emt 0:02:59]} 13. Nxf5 {[%emt 0:00:53]} Ne5 {[%emt 0:00:45]} 14. Nxg7 {[%emt 0:01:53]} Kxg7 {[%emt 0:00:16]} 15. Bh6+ {[%emt 0:00:15]} Kh7 {[%emt 0:00:07]} 16. Bxf8 {[%emt 0:00:22]} Qxf8 {[%emt 0:00:33]} 17. h3 {[%emt 0:00:12]} Be6 {[%emt 0:00:28]} 18. Qg5 {[%emt 0:00:15]} Qh6 {[%emt 0:00:36]} 19. Qxh6+ {[%emt 0:00:16]} Kxh6 {[%emt 0:00:07]} 20. Nd5 {[%emt 0:00:21]} Rc8 {[%emt 0:00:16]} 21. Rac1 {[%emt 0:02:00]} Rc4 {[%emt 0:01:27]} 22. Nxe7 {[%emt 0:00:40]} Rxe4 {[%emt 0:00:49]} 23. Nf5+ {[%emt 0:00:13]} Kg6 {[%emt 0:00:48]} 24. Nxd6 {[%emt 0:00:23]} Rb4 {[%emt 0:00:07]} 25. b3 {[%emt 0:00:22]} Rb6 {[%emt 0:00:13]} 26. Rfd1 {[%emt 0:00:50]} Nc6 {[%emt 0:00:16]} 27. c4 {[%emt 0:00:22]} Nb4 {[%emt 0:00:06]} 28. a3 {[%emt 0:00:53]} Nc6 {[%emt 0:00:11]} 29. b4 {[%emt 0:00:13]} Ne5 {[%emt 0:00:09]} 30. c5 {[%emt 0:00:12]} Ra6 {[%emt 0:00:09]} 31. Nxb7 {[%emt 0:01:11]} Rxa3 {[%emt 0:00:10]} 32. c6 {[%emt 0:00:00]} Rg3 {[%emt 0:00:14]} 33. Kh2 {[%emt 0:00:00]} Rb3 {[%emt 0:00:07]} 34. c7 {[%emt 0:00:00]} Rxb4 {[%emt 0:00:07]} 35. Nd6 {[%emt 0:00:00]} Rb2 {[%emt 0:00:07]} 36. c8=Q {[%emt 0:00:07]} Bxc8 {[%emt 0:00:06]} 37. Nxc8 {[%emt 0:00:11]} a6 {[%emt 0:00:22]} 38. Ne7+ {[%emt 0:00:13]} Kg5 {[%emt 0:00:09]} 39. Rc5 {[%emt 0:00:16]} f6 {[%emt 0:00:11]} 40. Nc6 {[%emt 0:00:10]} h4 {[%emt 0:00:11]} 41. Nxe5 {[%emt 0:00:07]} fxe5 {[%emt 0:00:07]} 42. Rxe5+ {[%emt 0:00:06]} Kf4 {[%emt 0:00:05]} 43. Ra5 {[%emt 0:00:07]} 1-0

[Event "Queen Rapid Challenge 2024"]
[Site "Bucharest"]
[Date "2024.03.10"]
[Round "6.5"]
[White "Raeva, Elitsa"]
[Black "Cosman, Andreea-Marioara"]
[Result "1-0"]
[ECO "A48"]
[WhiteElo "2185"]
[BlackElo "2115"]
[Annotator "RC"]
[PlyCount "53"]
[EventDate "2024.03.09"]
[EventType "rapid"]
[EventCountry "ROU"]
[SourceTitle "playchess.com"]
[Source "ChessBase"]
[SourceQuality "1"]
[TimeControl "900+10"]

1. d4 {[%emt 0:00:13]} Nf6 {[%emt 0:00:12]} 2. Nf3 {[%emt 0:00:06]} g6 {[%emt 0:00:06]} 3. e3 {[%emt 0:00:44]} Bg7 {[%emt 0:00:11]} 4. Bd3 {[%emt 0:00:07]} c5 {[%emt 0:00:21]} 5. O-O {[%emt 0:00:09]} O-O {[%emt 0:00:17]} 6. b3 {[%emt 0:00:06]} b6 {[%emt 0:00:12]} 7. Bb2 {[%emt 0:00:08]} Bb7 {[%emt 0:00:07]} 8. Nbd2 {[%emt 0:00:11]} d6 {[%emt 0:00:27]} 9. Qe2 {[%emt 0:01:16]} Nc6 {[%emt 0:00:07]} 10. a3 {[%emt 0:00:11]} Qc7 {[%emt 0:00:43]} 11. c4 {[%emt 0:00:12]} cxd4 {[%emt 0:01:01]} 12. exd4 {[%emt 0:00:40]} d5 {[%emt 0:00:07]} 13. Rac1 {[%emt 0:00:20]} Rac8 {[%emt 0:00:08]} 14. Rfe1 {[%emt 0:00:27]} Qb8 {[%emt 0:01:06]} 15. c5 {[%emt 0:00:12]} Rfe8 {[%emt 0:01:34]} 16. b4 {[%emt 0:01:20]} e5 {[%emt 0:03:03]} 17. Nxe5 {[%emt 0:01:58]} Nxe5 {[%emt 0:00:19]} 18. dxe5 {[%emt 0:00:09]} Nd7 {[%emt 0:00:06]} 19. Nf3 {[%emt 0:04:34]} bxc5 {[%emt 0:00:15]} 20. bxc5 {[%emt 0:00:10]} Nxc5 {[%emt 0:01:08]} 21. Bb5 {[%emt 0:00:21]} Red8 {[%emt 0:00:24]} 22. Rxc5 {[%emt 0:00:54]} Rxc5 {[%emt 0:00:20]} 23. e6 {[%emt 0:00:07]} Bxb2 {[%emt 0:04:38]} 24. exf7+ {[%emt 0:01:17]} Kxf7 {[%emt 0:01:24]} 25. Ng5+ {[%emt 0:00:22]} Kg7 {[%emt 0:00:44]} 26. Qe7+ {[%emt 0:00:52]} Kh6 {[%emt 0:00:07]} 27. Nf7+ {[%emt 0:00:12]} 1-0

[Event "Queen Rapid Challenge 2024"]
[Site "Bucharest"]
[Date "2024.03.10"]
[Round "6.6"]
[White "Sandu, Mihaela"]
[Black "Cosma, Elena-Luminita"]
[Result "0-1"]
[ECO "C14"]
[WhiteElo "2270"]
[BlackElo "2238"]
[Annotator "RC"]
[PlyCount "108"]
[EventDate "2024.03.09"]
[EventType "rapid"]
[EventCountry "ROU"]
[SourceTitle "playchess.com"]
[Source "ChessBase"]
[SourceQuality "1"]
[TimeControl "900+10"]

1. e4 {[%emt 0:00:14]} e6 {[%emt 0:00:10]} 2. d4 {[%emt 0:00:07]} d5 {[%emt 0:00:06]} 3. Nc3 {[%emt 0:00:06]} Nf6 {[%emt 0:00:10]} 4. Bg5 {[%emt 0:00:08]} Be7 {[%emt 0:00:08]} 5. e5 {[%emt 0:00:12]} Nfd7 {[%emt 0:00:07]} 6. h4 {[%emt 0:00:07]} h6 {[%emt 0:00:08]} 7. Be3 {[%emt 0:00:20]} c5 {[%emt 0:00:17]} 8. dxc5 {[%emt 0:00:22]} Nc6 {[%emt 0:00:36]} 9. Qg4 {[%emt 0:02:14]} Kf8 {[%emt 0:02:11]} 10. O-O-O {[%emt 0:00:35]} Bxc5 {[%emt 0:02:18]} 11. Bxc5+ {[%emt 0:00:56]} Nxc5 {[%emt 0:00:07]} 12. Rh3 {[%emt 0:00:16]} Nxe5 {[%emt 0:01:26]} 13. Qd4 {[%emt 0:00:55]} Ncd7 {[%emt 0:00:13]} 14. f4 {[%emt 0:00:41]} Nc6 {[%emt 0:00:14]} 15. Qd2 {[%emt 0:00:25]} Nf6 {[%emt 0:02:04]} 16. Nf3 {[%emt 0:00:16]} Bd7 {[%emt 0:00:06]} 17. Ne5 {[%emt 0:00:57]} Rc8 {[%emt 0:00:07]} 18. Be2 {[%emt 0:00:41]} d4 {[%emt 0:02:09]} 19. Nb5 {[%emt 0:02:14]} Ne4 {[%emt 0:01:21]} 20. Nxc6 {[%emt 0:00:07]} Bxc6 {[%emt 0:00:09]} 21. Qxd4 {[%emt 0:01:02]} Qxd4 {[%emt 0:00:10]} 22. Rxd4 {[%emt 0:00:07]} Bxb5 {[%emt 0:00:17]} 23. Bxb5 {[%emt 0:00:08]} Nf6 {[%emt 0:00:07]} 24. Ra3 {[%emt 0:00:34]} a6 {[%emt 0:00:11]} 25. Be2 {[%emt 0:00:10]} Ke7 {[%emt 0:00:14]} 26. Rb3 {[%emt 0:00:28]} Rc7 {[%emt 0:00:15]} 27. Bf3 {[%emt 0:00:08]} b5 {[%emt 0:00:23]} 28. a4 {[%emt 0:00:29]} Rhc8 {[%emt 0:00:17]} 29. c3 {[%emt 0:00:07]} Rc4 {[%emt 0:00:34]} 30. Rxc4 {[%emt 0:00:29]} Rxc4 {[%emt 0:00:07]} 31. axb5 {[%emt 0:00:10]} axb5 {[%emt 0:00:06]} 32. g3 {[%emt 0:00:13]} Rc5 {[%emt 0:00:15]} 33. Be2 {[%emt 0:00:12]} Ne4 {[%emt 0:00:06]} 34. g4 {[%emt 0:00:46]} Nd6 {[%emt 0:00:15]} 35. Ra3 {[%emt 0:00:10]} h5 {[%emt 0:01:09]} 36. Ra7+ {[%emt 0:01:13]} Kd8 {[%emt 0:00:45]} 37. Ra6 {[%emt 0:02:15]} Kd7 {[%emt 0:00:07]} 38. Ra7+ {[%emt 0:00:25]} Kd8 {[%emt 0:01:10]} 39. Ra8+ {[%emt 0:00:16]} Ke7 {[%emt 0:00:14]} 40. Ra7+ {[%emt 0:00:23]} Kd8 {[%emt 0:00:39]} 41. Kd2 {[%emt 0:00:08]} Rd5+ {[%emt 0:00:12]} 42. Ke3 {[%emt 0:00:07]} hxg4 {[%emt 0:00:11]} 43. Bxg4 {[%emt 0:00:07]} Nc4+ {[%emt 0:00:07]} 44. Kf2 {[%emt 0:00:13]} Rd7 {[%emt 0:00:21]} 45. Ra8+ {[%emt 0:00:08]} Ke7 {[%emt 0:00:06]} 46. Be2 {[%emt 0:00:09]} Rd2 {[%emt 0:00:07]} 47. Rb8 {[%emt 0:00:10]} Rxb2 {[%emt 0:00:08]} 48. Kf3 {[%emt 0:00:10]} Rc2 {[%emt 0:00:09]} 49. Rxb5 {[%emt 0:00:08]} Rxc3+ {[%emt 0:00:08]} 50. Kf2 {[%emt 0:00:07]} Nd6 {[%emt 0:00:07]} 51. Ra5 {[%emt 0:00:07]} Ne4+ {[%emt 0:00:07]} 52. Ke1 {[%emt 0:00:07]} Rh3 {[%emt 0:00:07]} 53. h5 {[%emt 0:00:08]} Rh1+ {[%emt 0:00:06]} 54. Bf1 {[%emt 0:00:06]} Ng3 {[%emt 0:00:06]} 0-1